bitfinex-derivatives/quotes_ETHF0:USTF0_20250927
["timestamp","ask_amount","ask_price","bid_price","bid_amount"]
[1758979468989,5.09965,4019.6,4019.5,1.4258]
[1758979469991,5.61072298,4019.6,4019.5,1.4258]
[1758979470491,5.61072298,4019.6,4019.5,1.87336]
[1758979470687,5.16317298,4019.6,4019.5,1.87336]
[1758979470895,4.73447298,4019.6,4019.5,2.11006]
[1758979471390,4.73447298,4019.6,4019.5,2.36006]
[1758979472391,3.71887298,4019.6,4019.5,2.36006]
[1758979472691,5.16317298,4019.6,4019.5,2.12336]
[1758979475593,1.4443,4019.6,4019.5,5.33116]
[1758979476290,1.0156,4019.6,4019.5,5.33116]
[1758979476488,0.00208419,4019.8,4019.7,1.24594]
[1758979476489,1.01768419,4019.8,4019.7,1.24594]
[1758979476683,1.51685096,4019.8,4019.7,1.87334]
[1758979478894,0.50125096,4019.8,4019.7,2.12334]
[1758979479188,0.00208419,4019.8,4019.7,2.12334]
[1758979479382,0.59738419,4019.8,4019.7,2.12334]
[1758979479590,1.01768419,4019.8,4019.7,2.12334]
[1758979482895,1.44638419,4019.8,4019.7,2.12334]
[1758979483393,1.44638419,4019.8,4019.7,1.49594]
[1758979483788,1.44638419,4019.8,4019.7,2.12334]
[1758979485793,1.44638419,4019.8,4019.7,1.49594]
[1758979485991,1.44638419,4019.8,4019.7,1.08984]
[1758979486192,1.94618325,4019.8,4019.7,1.08984]
[1758979486587,1.94618325,4019.8,4019.7,1.71724]
[1758979488395,2.39371325,4019.8,4019.7,1.08984]
[1758979488594,2.39371325,4019.8,4019.7,0.44754]
[1758979488795,2.39371325,4019.8,4019.7,0.69754]
[1758979490102,1.94618325,4019.8,4019.7,1.08984]
[1758979490500,2.39371325,4019.8,4019.7,1.08984]
[1758979490703,2.39371325,4019.8,4019.7,1.71724]
[1758979494604,1.94618325,4019.8,4019.7,1.71724]
[1758979497393,1.94618325,4019.8,4019.7,2.10854]
[1758979504408,0.50188325,4019.8,4019.7,2.10854]
[1758979505410,0.32467393,4019.8,4019.7,2.10854]
[1758979505608,3.2078,4021.1,4020.9,0.4474]
[1758979505815,0.8088,4021.1,4021.0,1.85799]
[1758979506313,1.4147,4021.1,4021.0,1.85799]
[1758979506514,1.41648715,4021.1,4021.0,1.86037684]
[1758979508110,1.03068715,4021.1,4021.0,2.09867684]
[1758979508613,0.00178715,4021.1,4021.0,2.09867684]
[1758979509409,1.78767958,4022.1,4021.0,2.09867684]
[1758979509410,0.4082,4021.7,4021.6,0.44733]
[1758979509711,3.2078,4022.1,4021.6,0.44733]
[1758979509712,3.2078,4022.1,4022.0,0.2383]
[1758979509902,1.0739,4022.5,4022.4,0.801]
[1758979510107,1.0739,4022.5,4022.4,1.4354]
[1758979510310,1.07619079,4022.5,4022.4,1.4354]
[1758979510505,0.81869079,4022.5,4022.4,1.4354]
[1758979511105,1.05769079,4022.5,4022.4,1.4354]
[1758979511714,1.64509079,4022.5,4022.4,1.4354]
[1758979513714,0.99789079,4022.5,4022.4,1.4354]
[1758979516422,0.99789079,4022.5,4022.4,1.88264]
[1758979517925,1.40609079,4022.5,4022.4,1.88264]
[1758979520424,1.40609079,4022.5,4022.4,1.4354]
[1758979520725,1.4038,4022.3,4022.2,0.64605]
[1758979520920,2.83543658,4022.3,4022.2,0.64605]
[1758979521222,1.4038,4022.3,4022.2,1.88265]
[1758979528431,3.28268658,4022.3,4022.2,0.69725]
[1758979528731,2.83543658,4022.3,4022.2,0.69725]
[1758979531832,2.83543658,4022.3,4022.2,1.10655]
[1758979532235,2.83543658,4022.3,4022.2,1.71745]
[1758979533134,3.33304716,4022.3,4022.2,1.71745]
[1758979533528,2.83543658,4022.3,4022.2,4.92525]
[1758979533728,1.4038,4022.3,4022.2,5.33375]
[1758979534233,1.90186636,4022.3,4022.2,5.33375]
[1758979540032,1.90186636,4022.3,4022.2,5.08375]
[1758979540231,3.33350294,4022.3,4022.2,5.08375]
[1758979541737,2.33790294,4022.3,4022.2,5.08375]
[1758979541937,0.90626636,4022.3,4022.2,5.08375]
[1758979542136,0.49806636,4022.3,4022.2,5.08375]
[1758979543127,0.49806636,4022.3,4022.2,10.08375]
[1758979546838,0.00229079,4022.5,4022.4,1.87594]
[1758979547042,0.00229079,4022.5,4022.4,3.55757658]
[1758979547243,0.50169673,4022.5,4022.4,3.55757658]
[1758979548338,1.08329673,4022.5,4022.4,1.87594]
[1758979548536,1.46939673,4022.5,4022.4,2.12594]
[1758979549142,0.88779673,4022.5,4022.4,2.12594]
[1758979549333,0.50169673,4022.5,4022.4,2.12594]
[1758979550348,1.46939673,4022.5,4022.4,2.12594]
[1758979553848,0.50169673,4022.5,4022.4,2.12594]
[1758979554141,0.00229079,4022.5,4022.4,2.12594]
[1758979554946,0.022,4022.9,4022.8,1.82239]
[1758979555139,0.022,4022.9,4022.8,6.71182658]
[1758979555841,0.02415604,4022.9,4022.8,6.71182658]
[1758979556046,1.00085604,4022.9,4022.8,6.71182658]
[1758979560846,0.02415604,4022.9,4022.8,6.71182658]
[1758979561550,0.61275604,4022.9,4022.8,6.71182658]
[1758979563162,0.02415604,4022.9,4022.8,6.71182658]
[1758979563758,1.00085604,4022.9,4022.8,6.71182658]
[1758979567862,0.02415604,4022.9,4022.8,6.71182658]
[1758979568560,0.02415604,4022.9,4022.8,6.46182658]
[1758979568762,0.02415604,4022.9,4022.8,6.71182658]
[1758979580680,0.02415604,4022.9,4022.8,5.28019]
[1758979582173,1.00955604,4022.9,4022.8,5.03019]
[1758979582378,1.00955604,4022.9,4022.8,5.28019]
[1758979583082,0.02415604,4022.9,4022.8,5.28019]
[1758979583480,0.52449268,4022.9,4022.8,5.28019]
[1758979585685,0.52449268,4022.9,4022.8,2.07239]
[1758979585885,0.52449268,4022.9,4022.8,5.28019]
[1758979588887,1.50849268,4022.9,4022.8,5.28019]
[1758979589294,8.68780971,4022.9,4022.8,3.2078]
[1758979589487,8.68780971,4022.9,4022.8,3.65499]
[1758979590193,8.68780971,4022.9,4022.8,0.44719]
[1758979590395,9.13498971,4022.9,4022.8,0.44719]
[1758979593084,8.68780971,4022.9,4022.8,0.44719]
[1758979594496,9.13498971,4022.9,4022.8,0.44719]
[1758979594902,8.68780971,4022.9,4022.8,0.44719]
[1758979598805,6.90449268,4022.9,4022.8,0.44719]
[1758979599503,1.90449268,4022.9,4022.8,0.44719]
[1758979599894,1.90449268,4022.9,4022.8,1.44789]
[1758979603609,1.90449268,4022.9,4022.8,1.83999]
[1758979605002,1.90449268,4022.9,4022.8,5.04779]
[1758979605506,1.50849268,4022.9,4022.8,5.04779]
[1758979616713,1.88389268,4022.9,4022.8,3.2078]
[1758979616906,1.32,4021.9,4021.8,0.4473]
[1758979617108,1.82058934,4021.9,4021.8,0.8236]
[1758979617311,1.82058934,4021.9,4021.8,2.0128]
[1758979618213,1.32,4021.4,4021.3,0.44736]
[1758979618409,1.82058934,4021.4,4021.3,0.44736]
[1758979619811,1.82058934,4021.4,4021.0,0.55898684]
[1758979619812,5.02838934,4021.4,4021.0,0.55898684]
[1758979620116,1.32,4021.1,4021.0,0.00238684]
[1758979620318,1.82058934,4021.1,4021.0,0.00238684]
[1758979623009,1.44518934,4021.1,4021.0,1.55478684]
[1758979623211,4.1524,4021.4,4021.3,1.76286]
[1758979623409,4.65162823,4021.4,4021.3,1.76286]
[1758979624517,3.5859,4021.4,4021.3,1.76286]
[1758979625019,3.2078,4021.4,4021.3,1.76286]
[1758979625808,0.5665,4021.8,4021.5,1.11832]
[1758979626010,0.9446,4021.8,4021.7,1.3155]
[1758979627215,0.9446,4021.8,4021.7,1.76281]
[1758979629222,3.2078,4021.9,4021.8,1.1897]
[1758979629420,3.2078,4021.9,4021.8,1.7707]
[1758979629621,4.1775,4021.9,4021.8,1.7707]
[1758979630517,3.2078,4021.9,4021.8,1.7707]
[1758979631322,3.79,4021.9,4021.8,1.7707]
[1758979632016,4.1775,4021.9,4021.8,1.7707]
[1758979632321,0.9697,4021.9,4021.8,1.7707]
[1758979636522,0.9697,4021.9,4021.8,2.0207]
[1758979637116,4.577,4022.4,4022.3,0.82005]
[1758979637315,5.07795134,4022.4,4022.3,1.40105]
[1758979637516,5.07795134,4022.4,4022.3,0.82005]
[1758979638720,5.07795134,4022.4,4022.3,0.44725]
[1758979640925,5.52519134,4022.4,4022.3,0.44725]
[1758979642225,5.07795134,4022.4,4022.3,0.44725]
[1758979646528,5.52519134,4022.4,4022.3,0.44725]
[1758979646831,5.52519134,4022.4,4022.1,0.25]
[1758979646832,1.21486,4022.3,4022.2,0.44725]
[1758979647032,1.71581134,4022.3,4022.2,0.44725]
[1758979647330,2.27911134,4022.3,4022.2,0.44725]
[1758979648632,1.83185134,4022.3,4022.2,0.44725]
[1758979648827,2.27910134,4022.3,4022.2,0.44725]
[1758979649027,1.77816,4022.2,4022.1,0.44727]
[1758979649233,3.71094121,4022.2,4022.1,0.44727]
[1758979649830,8.71094121,4022.2,4021.7,1.11828]
[1758979650020,1.5531,4021.5,4021.4,0.44735]
[1758979650424,2.0551688,4021.5,4021.4,0.44735]
[1758979654039,1.3309,4021.4,4021.0,0.00238684]
[1758979654341,2.2803288,4021.3,4021.2,0.44737]
[1758979654631,1.8329688,4021.3,4021.2,0.44737]
[1758979655034,1.3309,4021.1,4021.0,0.00238684]
[1758979655234,1.8329688,4021.1,4021.0,3.20520671]
[1758979657336,1.3309,4021.1,4021.0,3.20520671]
[1758979659540,1.3309,4021.1,4021.0,3.44870671]
[1758979659541,0.5633,4021.1,4021.0,3.44870671]
[1758979659743,1.5531,4021.5,4021.4,1.39195]
[1758979660041,2.05530816,4021.5,4021.4,1.77095]
[1758979660236,1.83310816,4021.5,4021.4,1.77095]
[1758979660942,2.05530816,4021.5,4021.4,1.77095]
[1758979665141,1.83310816,4021.5,4021.4,1.77095]
[1758979665347,0.50220816,4021.5,4021.4,1.77095]
[1758979665544,1.43880816,4021.5,4021.4,1.77095]
[1758979667049,2.05530816,4021.5,4021.4,1.77095]
[1758979669054,1.5531,4021.5,4021.4,1.77095]
[1758979669247,2.0553068,4021.5,4021.4,1.77095]
[1758979672151,2.0553068,4021.5,4021.4,2.02095]
[1758979672955,0.5022068,4021.5,4021.4,2.02095]
[1758979675651,3.65504,4022.4,4022.0,1.77748]
[1758979675652,0.9158,4022.1,4022.0,1.77748]
[1758979675858,4.5161,4022.4,4022.3,1.77745]
[1758979676155,4.5161,4022.4,4022.3,2.02745]
[1758979678755,4.5161,4022.4,4022.3,1.46005]
[1758979679757,4.96334,4022.4,4022.3,1.46005]
[1758979679960,4.96334,4022.4,4022.3,1.08845]
[1758979680658,6.39516987,4022.4,4022.3,0.69725]
[1758979681050,5.94792987,4022.4,4022.3,0.69725]
[1758979681655,6.39516987,4022.4,4022.3,0.69725]
[1758979684959,5.94792987,4022.4,4022.3,0.69725]
[1758979686060,6.39515987,4022.4,4022.3,0.69725]
[1758979687664,6.89470329,4022.4,4022.3,0.69725]
[1758979690072,6.89470329,4022.4,4022.3,0.44725]
[1758979691569,6.89470329,4022.4,4022.3,0.80295]
[1758979691972,6.89470329,4022.4,4022.3,0.44725]
[1758979696463,0.44725,4022.3,4022.2,0.69725]
[1758979696668,1.75947,4022.2,4022.1,0.69726]
[1758979696874,2.25901342,4022.2,4022.1,0.69726]
[1758979701579,1.81174342,4022.2,4022.1,2.03476]
[1758979703182,2.25900342,4022.2,4022.1,2.03476]
[1758979705076,1.81174342,4022.2,4022.1,2.03476]
[1758979713387,0.49954342,4022.2,4022.1,2.03476]
[1758979713588,4.9527,4022.8,4022.7,1.4031]
[1758979713884,5.00558618,4022.8,4022.7,1.4031]
[1758979714089,5.45277618,4022.8,4022.7,1.4031]
[1758979714387,5.45277618,4022.8,4022.7,0.8273]
[1758979714587,1.79778618,4022.8,4022.7,0.8273]
[1758979714776,1.79778618,4022.8,4022.7,1.4031]
[1758979715687,0.50008618,4022.8,4022.7,1.7732]
[1758979715882,1.04968618,4022.8,4022.7,1.7732]
[1758979716082,1.41158618,4022.8,4022.7,1.7732]
[1758979717687,1.79778618,4022.8,4022.7,1.7732]
[1758979717890,1.79778618,4022.8,4022.7,1.0773]
[1758979720288,1.79778618,4022.8,4022.7,1.6531]
[1758979722695,1.79778618,4022.8,4022.7,2.0232]
[1758979722888,1.79778618,4022.8,4022.7,1.4474]
[1758979723894,1.79778618,4022.8,4022.7,2.0232]
[1758979724494,1.79778618,4022.8,4022.7,1.7732]
[1758979724792,1.79778618,4022.8,4022.7,2.0232]
[1758979725993,1.79778618,4022.8,4022.7,1.7732]
[1758979726296,1.79778618,4022.8,4022.7,2.0232]
[1758979728097,1.79778618,4022.8,4022.5,0.1355]
[1758979728395,1.2977,4022.8,4022.7,0.6972]
[1758979728597,1.79716753,4022.8,4022.7,0.6972]
[1758979734295,1.79716753,4022.8,4022.7,0.4472]
[1758979736096,1.79716753,4022.8,4022.7,0.8273]
[1758979740401,1.79716753,4022.8,4022.7,1.3595]
[1758979742306,1.79716753,4022.8,4022.7,0.8273]
[1758979746701,1.79716753,4022.8,4022.7,0.4472]
[1758979746903,0.7144,4022.6,4022.5,0.1355]
[1758979747205,0.7144,4022.6,4022.5,0.44723]
[1758979747206,2.20547753,4022.6,4022.5,0.44723]
[1758979747408,0.7144,4022.4,4022.3,0.69724]
[1758979747705,1.75826753,4022.4,4022.3,0.69724]
[1758979748304,2.20550753,4022.4,4022.3,0.69724]
[1758979751202,2.20550753,4022.4,4022.3,0.25]
[1758979752010,2.20550753,4022.4,4022.3,0.69725]
[1758979752308,2.20550753,4022.4,4022.3,0.25]
[1758979752607,2.20550753,4022.4,4022.3,0.69725]
[1758979753706,1.16796,4022.2,4022.1,0.1355]
[1758979753905,2.21832753,4022.2,4022.1,0.1355]
[1758979754105,2.21832753,4022.2,4021.9,0.44728]
[1758979754106,1.94278,4022.0,4021.9,0.44728]
[1758979754404,1.7189,4021.9,4021.8,0.8082]
[1758979754602,2.21836753,4021.9,4021.8,0.8082]
[1758979755101,1.77106753,4021.9,4021.8,0.8082]
[1758979755605,1.77106753,4021.9,4021.8,1.6805]
[1758979759706,1.77106753,4021.9,4021.8,1.9305]
[1758979769812,1.77164147,4021.9,4021.8,1.9305]
[1758979778520,1.77164147,4021.9,4021.8,1.9679]
[1758979779921,1.77164147,4021.9,4021.8,1.7179]
[1758979780222,1.77164147,4021.9,4021.8,1.9679]
[1758979785922,1.77272036,4021.9,4021.8,1.9679]
[1758979799531,0.50112036,4021.9,4021.8,3.39979049]
[1758979800728,0.5242,4022.2,4022.1,0.78307]
[1758979800926,1.02542732,4022.2,4022.1,1.89887]
[1758979801231,1.38812732,4022.2,4022.1,1.89887]
[1758979802524,0.50122732,4022.2,4022.1,3.33076049]
[1758979803729,0.50122732,4022.2,4022.1,8.33076049]
[1758979803932,0.8869,4022.8,4022.7,1.6488]
[1758979804128,1.38788922,4022.8,4022.7,1.8988]
[1758979805331,1.74268922,4022.8,4022.7,1.8988]
[1758979815538,1.74077142,4022.8,4022.7,1.8988]
[1758979827852,1.74077142,4022.8,4022.7,1.6488]
[1758979828047,1.74077142,4022.8,4022.7,0.6972]
[1758979829849,1.74077142,4022.8,4022.7,0.4472]
[1758979835248,5.39576142,4022.8,4022.6,0.44721]
[1758979835448,0.44721,4022.6,4022.5,0.1352]
[1758979835653,3.97193531,4022.6,4022.5,0.1352]
[1758979835857,1.2419,4022.4,4022.3,0.44724]
[1758979836055,3.97196531,4022.4,4022.3,0.44724]
[1758979836248,4.22196531,4022.4,4022.3,0.44724]
[1758979837551,0.44725,4022.3,4022.1,0.44726]
[1758979837749,1.4496,4022.0,4021.9,0.44729]
[1758979837955,1.94867142,4022.0,4021.9,1.30719]
[1758979838754,1.94867142,4022.0,4021.9,0.78119]
[1758979840943,1.94867142,4022.0,4021.9,0.3339]
[1758979841151,2.39595142,4022.0,4021.9,0.3339]
[1758979841449,2.39595142,4022.0,4021.9,0.78119]
[1758979842252,1.94867142,4022.0,4021.9,0.78119]
[1758979843548,1.94867142,4022.0,4021.9,1.30719]
[1758979846857,1.74097142,4022.0,4021.9,1.65749]
[1758979852870,0.49907142,4022.0,4021.9,1.65749]
[1758979853067,4.082,4022.3,4022.2,0.5034]
[1758979853273,4.5808605,4022.3,4022.2,1.201]
[1758979853473,4.5808605,4022.3,4022.2,1.64826]
[1758979853673,4.9223605,4022.3,4022.2,1.64826]
[1758979855775,4.92247816,4022.3,4022.2,1.64826]
[1758979860178,4.92247816,4022.3,4022.2,1.14486]
[1758979860881,1.71467816,4022.3,4022.2,1.14486]
[1758979861886,1.71467816,4022.3,4022.2,0.44726]
[1758979870089,1.2134,4021.7,4021.6,0.3235]
[1758979870292,1.71323967,4021.7,4021.6,0.44733]
[1758979872490,1.71323967,4021.7,4021.6,0.77083]
[1758979873391,1.71323967,4021.7,4021.6,1.25683]
[1758979874996,1.71323967,4021.7,4021.6,1.59813]
[1758979880196,1.71323967,4021.7,4021.6,1.11213]
[1758979880995,1.71323967,4021.7,4021.6,0.77083]
[1758979882091,2.16054967,4021.7,4021.6,0.44733]
[1758979882791,1.71323967,4021.7,4021.6,0.44733]
[1758979884594,1.71323967,4021.7,4021.6,0.77133]
[1758979885095,1.71323967,4021.7,4021.6,1.26683]
[1758979885495,1.71283825,4021.7,4021.6,1.26683]
[1758979888104,1.71283825,4021.7,4021.6,0.77133]
[1758979889607,1.71283825,4021.7,4021.6,0.44733]
[1758979889904,1.1805,4021.6,4021.5,0.69734]
[1758979890203,1.67993825,4021.6,4021.5,0.69734]
[1758979893507,1.68005737,4021.6,4021.5,0.69734]
[1758979895407,1.68005737,4021.6,4021.5,1.02134]
[1758979895995,1.68005737,4021.6,4021.5,1.86274]
[1758979896200,1.68005737,4021.6,4021.5,0.77134]
[1758979896504,1.68005737,4021.6,4021.5,1.26684]
[1758979897410,2.12738737,4021.6,4021.5,0.77134]
[1758979898108,1.68005737,4021.6,4021.5,1.26684]
[1758979898701,1.68005737,4021.6,4021.5,1.61274]
[1758979899203,1.35475737,4021.6,4021.5,3.24907288]
[1758979899404,0.49955737,4021.6,4021.5,3.24907288]
[1758979899603,0.49955737,4021.6,4021.5,8.24907288]
[1758979900501,0.49955737,4021.6,4021.5,3.24907288]
[1758979906913,1.3788,4021.5,4021.4,3.65515]
[1758979907114,1.87835737,4021.5,4021.4,3.90415]
[1758979907314,1.87835737,4021.5,4021.4,4.22815]
[1758979908823,1.68005737,4021.5,4021.4,5.06955]
[1758979910019,0.49955737,4021.5,4021.4,5.06955]
[1758979910217,0.8552,4021.7,4021.6,0.4955]
[1758979910420,1.35556772,4021.7,4021.6,0.9189]
[1758979910621,1.35556772,4021.7,4021.6,1.86173]
[1758979911622,1.35556772,4021.7,4021.6,1.61273]
[1758979911822,1.35556772,4021.7,4021.6,1.86173]
[1758979912423,0.50036772,4021.7,4021.6,1.86173]
[1758979913224,1.34566772,4021.7,4021.6,1.86173]
[1758979920633,0.99866772,4021.7,4021.6,1.86173]
[1758979920835,0.50036772,4021.7,4021.6,1.86173]
[1758979921527,0.50036772,4021.7,4021.6,3.29396288]
[1758979922736,0.4983,4021.9,4021.8,1.1333]
[1758979923033,0.8453,4021.9,4021.8,1.8866]
[1758979923335,1.34562422,4021.9,4021.8,5.0944]
[1758979923527,1.66352422,4021.9,4021.8,5.0944]
[1758979926127,0.50032422,4021.9,4021.8,5.0944]
[1758979926525,1.34562422,4021.9,4021.8,5.0944]
[1758979945739,0.99862422,4021.9,4021.8,5.0944]
[1758979948032,1.31312422,4021.9,4021.8,4.8454]
[1758979948233,1.64282422,4021.9,4021.8,5.0944]
[1758979950249,1.64282422,4021.9,4021.8,4.8454]
[1758979950547,1.64282422,4021.9,4021.8,5.0944]
[1758979951250,1.64282422,4021.9,4021.8,4.8454]
[1758979951442,1.64282422,4021.9,4021.8,5.0944]
[1758979953451,1.31312422,4021.9,4021.8,5.0944]
[1758979953961,0.2077,4022.5,4022.4,1.60544]
[1758979953962,0.6442,4022.5,4022.4,1.60544]
[1758979954247,0.3145,4022.5,4022.4,1.85444]
[1758979955342,0.66835604,4022.9,4022.8,1.27219]
[1758979955945,1.16125604,4022.9,4022.8,1.27219]
[1758979957646,1.16125604,4022.9,4022.8,1.60539]
[1758979957951,1.16125604,4022.9,4022.8,1.85439]
[1758979962555,0.83155604,4022.9,4022.8,1.85439]
[1758979965851,1.6576276,4022.9,4022.8,1.27219]
[1758979966156,1.6576276,4022.9,4022.8,1.52119]
[1758979969253,3.4419025,4022.9,4022.8,0.44719]
[1758979969553,3.4419025,4022.9,4022.6,0.1261]
[1758979969554,0.4472,4022.8,4022.6,0.1261]
[1758979969854,5.28805744,4022.7,4022.6,0.1261]
[1758979970046,14.04705744,4022.7,4022.6,0.1261]
[1758979970357,1.1371,4022.3,4022.2,0.44726]
[1758979970557,3.41733234,4022.3,4022.2,0.44726]
[1758979971444,0.44726,4022.2,4022.0,0.69627]
[1758979971755,1.63305744,4022.1,4022.0,0.69628]
[1758979972153,1.63305744,4022.1,4022.0,0.44728]
[1758979972355,2.08032744,4022.1,4022.0,0.44728]
[1758979973253,2.08032744,4022.1,4021.8,0.374]
[1758979973254,1.59689,4021.9,4021.8,0.125]
[1758979973557,13.63612234,4021.9,4021.8,0.125]
[1758979974661,13.63612234,4021.9,4021.0,0.00238684]
[1758979974662,1.1496,4021.1,4021.0,0.00238684]
[1758979974850,3.42983234,4021.1,4021.0,0.00238684]
[1758979977957,3.67883234,4021.1,4021.0,0.00238684]
[1758979978856,3.1828749,4021.1,4021.0,0.00238684]
[1758979979072,4.12647647,4021.1,4021.0,0.00238684]
[1758979982365,4.12647647,4021.1,4021.0,0.44977684]
[1758979982563,4.12647647,4021.1,4021.0,0.00238684]
[1758979983164,4.12647647,4021.1,4021.0,0.44977684]
[1758979983966,4.12647647,4021.1,4021.0,0.00238684]
[1758979984163,3.6302549,4021.1,4021.0,0.00238684]
[1758979985063,3.6302549,4021.1,4021.0,0.44977684]
[1758979985463,1.3986,4021.1,4021.0,1.25727684]
[1758979985667,3.2078,4021.2,4021.1,0.44738]
[1758979985876,3.2078,4021.2,4021.1,1.57178]
[1758979986369,3.2078,4021.2,4021.1,6.57178]
[1758979986863,3.2078,4021.7,4021.6,1.1244]
[1758979987160,3.536,4021.7,4021.6,1.57173]
[1758979987365,4.0203,4021.7,4021.6,1.57173]
[1758979988169,4.3574,4021.7,4021.6,0.44733]
[1758979988468,4.80471,4021.7,4021.6,0.44733]
[1758979988772,4.80471,4021.7,4021.0,4.53416684]
[1758979988773,0.4732,4021.3,4021.2,0.44737]
[1758979988966,1.1203,4021.3,4021.2,1.27117]
[1758979992269,1.1203,4021.3,4021.2,1.57477]
[1758979998160,1.61604309,4021.3,4021.2,1.57477]
[1758979998564,2.06340309,4021.3,4021.2,0.44737]
[1758979999863,2.06340309,4021.3,4021.2,0.95137]
[1758980002068,2.06340309,4021.3,4021.2,1.27117]
[1758980004978,1.61604309,4021.3,4021.2,1.27117]
[1758980005166,1.61604309,4021.3,4021.2,1.57477]
[1758980008581,2.06340309,4021.3,4021.2,0.3198]
[1758980008782,1.07127,4021.2,4021.1,0.44738]
[1758980009082,1.56701309,4021.2,4021.1,0.44738]
[1758980009381,2.05061309,4021.2,4021.1,0.44738]
[1758980009680,2.05061309,4021.2,4021.1,0.94588]
[1758980010178,2.05061309,4021.2,4021.1,1.27058]
[1758980011073,2.05061309,4021.2,4021.1,1.57398]
[1758980011375,1.55488,4021.1,4021.0,0.00238684]
[1758980011572,6.93991201,4021.1,4021.0,0.00238684]
[1758980025986,0.76499,4020.2,4020.1,0.44749]
[1758980026194,3.48322201,4020.2,4020.1,0.44749]
[1758980026697,3.48322201,4020.2,4020.1,1.27069]
[1758980026990,3.48322201,4020.2,4020.1,1.27285265]
[1758980027589,3.48322201,4020.2,4020.1,0.82536265]
[1758980028597,3.48322201,4020.2,4020.1,0.00216265]
[1758980029495,3.48322201,4020.2,4020.1,0.82536265]
[1758980029694,3.48322201,4020.2,4020.1,1.27285265]
[1758980030796,3.03573201,4020.2,4020.1,1.27285265]
[1758980030994,3.48321201,4020.2,4020.1,1.57625265]
[1758980031595,0.49574309,4020.2,4020.1,8.00874157]
[1758980037801,0.49574309,4020.2,4020.1,6.57625265]
[1758980042199,3.02823201,4020.2,4020.1,6.82525265]
[1758980044399,3.47571201,4020.2,4020.1,0.00216265]
[1758980049399,2.04322309,4020.2,4020.1,0.00216265]
[1758980049602,3.47571201,4020.2,4020.1,0.00216265]
[1758980055512,13.34571201,4020.2,4020.1,0.00216265]
[1758980066520,11.91322309,4020.2,4020.1,0.00216265]
[1758980066724,13.6997909,4020.2,4020.1,0.00216265]
[1758980069419,9.2797909,4020.2,4020.1,0.00216265]
[1758980079436,0.7783,4019.3,4019.2,0.44758]
[1758980079634,1.0851,4019.2,4019.1,1.2171]
[1758980079834,1.58084309,4019.2,4019.1,1.2171]
[1758980080138,1.58084309,4019.2,4019.1,1.5171]
[1758980080540,1.58327386,4019.2,4019.1,1.51906356]
[1758980081944,1.83227386,4019.2,4019.1,0.00196356]
[1758980082145,2.27986386,4019.2,4019.1,0.00196356]
[1758980082438,1.83227386,4019.2,4019.1,0.00196356]
[1758980082642,1.83227386,4019.2,4019.1,0.91156356]
[1758980082842,1.83227386,4019.2,4019.1,1.21906356]
[1758980083342,2.27986386,4019.2,4019.1,0.77146356]
[1758980083730,2.27986386,4019.2,4019.1,0.75706356]
[1758980084134,2.27986386,4019.2,4019.1,1.21906356]
[1758980084334,1.83227386,4019.2,4019.1,1.21906356]
[1758980086946,1.83227386,4019.2,4019.1,1.51906356]
[1758980090949,2.27986386,4019.2,4019.1,1.51906356]
[1758980093855,2.27986386,4019.2,4019.1,1.21906356]
[1758980094247,2.27986386,4019.2,4019.1,0.44956356]
[1758980094556,2.27986386,4019.2,4019.1,0.92356356]
[1758980095154,2.27986386,4019.2,4019.1,1.22856356]
[1758980098653,1.83227386,4019.2,4019.1,1.22856356]
[1758980098857,1.83227386,4019.2,4019.1,1.51676356]
[1758980099053,1.05397386,4019.2,4019.1,1.51676356]
[1758980099261,1.52447386,4019.2,4019.1,1.51676356]
[1758980099459,0.74717386,4019.2,4019.1,1.51676356]
[1758980099957,1.05767386,4019.2,4019.1,1.51676356]
[1758980100159,1.52817386,4019.2,4019.1,1.51676356]
[1758980101162,1.81607386,4019.2,4019.1,1.51676356]
[1758980103253,0.74717386,4019.2,4019.1,1.51676356]
[1758980103459,0.49817386,4019.2,4019.1,6.51676356]
[1758980103960,0.00243077,4019.2,4019.1,6.51676356]
[1758980106460,0.00243077,4019.2,4019.1,6.76576356]
[1758980110465,3.2078,4019.9,4019.8,1.18683]
[1758980110667,3.5197,4020.4,4020.3,1.49457]
[1758980110969,3.70679476,4020.4,4020.3,1.49457]
[1758980111565,3.70987929,4020.4,4020.3,1.49457]
[1758980112170,4.02177929,4020.4,4020.3,1.49457]
[1758980113369,4.46107929,4020.4,4020.3,1.49457]
[1758980114561,3.70987929,4020.4,4020.3,1.49457]
[1758980115267,4.46107929,4020.4,4020.3,1.49457]
[1758980115773,4.76217929,4020.4,4020.3,1.49457]
[1758980119276,5.20963929,4020.4,4020.3,0.44747]
[1758980119473,5.45863929,4020.4,4020.3,0.44747]
[1758980119675,1.0523,4019.9,4019.8,1.49463]
[1758980123271,1.0523,4019.9,4019.8,1.18683]
[1758980123677,1.0523,4019.9,4019.8,1.49253]
[1758980124180,4.07498453,4020.4,4020.3,1.51407]
[1758980124382,4.57301764,4020.4,4020.3,1.51407]
[1758980124679,5.03771764,4020.4,4020.3,1.51407]
[1758980126680,6.4710406,4020.4,4020.3,1.51407]
[1758980131384,6.2220406,4020.4,4020.3,1.51407]
[1758980132378,6.2220406,4020.4,4020.3,0.44747]
[1758980132580,1.2609,4020.0,4019.9,0.69651]
[1758980132780,3.19225607,4020.0,4019.9,0.69651]
[1758980134584,3.44125607,4020.0,4019.9,0.44751]
[1758980139800,2.94322296,4020.0,4019.9,0.44751]
[1758980139990,3.4434127,4020.0,4019.9,0.44751]
[1758980140193,3.4434127,4020.0,4019.9,1.20841]
[1758980140388,3.2623127,4020.0,4019.9,1.51411]
[1758980140595,1.57998974,4020.0,4019.9,1.51411]
[1758980147597,0.50018974,4020.0,4019.9,1.51411]
[1758980148398,1.27568974,4020.0,4019.9,1.51411]
[1758980152015,0.50018974,4020.0,4019.9,1.51411]
[1758980155314,0.50018974,4020.0,4019.9,1.76311]
[1758980156820,0.00308453,4020.4,4020.3,0.44747]
[1758980157011,0.00308453,4020.4,4020.3,3.14589296]
[1758980157211,0.00308453,4020.4,4020.3,8.14589296]
[1758980157611,0.00308453,4020.4,4020.3,11.35369296]
[1758980157813,0.4374,4021.0,4020.9,1.0144]
[1758980158013,4.2425,4021.3,4021.2,1.46347]